fUSD/lending_fUSD_20240701
["ID","MTS","AMOUNT","RATE_DAILY","PERIOD"]
[330797145,1719799839005,-167.56,0.00014566,2]
[330797147,1719799839016,-173.75,0.00014569,2]
[330797149,1719799839026,-173.75,0.00014719,2]
[330797151,1719799839037,-216.96,0.00014791,2]
[330797153,1719799839048,-173.75,0.00014869,2]
[330797155,1719799839059,-4366.67,0.00015017,2]
[330797157,1719799839069,-173.75,0.00015019,2]
[330797159,1719799839080,-447.34,0.00015035,2]
[330797161,1719799839090,-500.0,0.00015099,2]
[330797163,1719799839101,-400.0,0.00015099,2]
[330797165,1719799839111,-173.75,0.0001517,2]
[330797167,1719799839122,-225.0,0.00015179,2]
[330797169,1719799839132,-644.09777031,0.00015293,2]
[330797171,1719799839143,-860.0,0.000153,2]
[330797173,1719799839152,-343.43544501,0.00015417,2]
[330797175,1719799839165,-813.0,0.0001555,2]
[330797177,1719799839175,-618.0,0.0001555,2]
[330797179,1719799839188,-443.0,0.0001555,2]
[330797181,1719799839198,-166.0,0.0001555,2]
[330797183,1719799839207,-276.0,0.0001555,2]
[330797185,1719799839217,-644.054,0.0001555,2]
[330797187,1719799839227,-529.916,0.0001555,2]
[330797189,1719799839238,-343.43544501,0.0001629,2]
[330797191,1719799839248,-200.0,0.000163,5]
[330797193,1719799839258,-644.09777031,0.00016478,2]
[330797195,1719799839269,-337.0,0.00016596,2]
[330797197,1719799839279,-643.43951558,0.00016743,2]
[330797199,1719799839290,-343.43544501,0.00017163,2]
[330797201,1719799839300,-250.0,0.00017251,2]
[330797203,1719799839310,-5000.0,0.00017259,2]
[330797205,1719799839320,-447.34,0.00017299,2]
[330797207,1719799839330,-1000.0,0.00017641,2]
[330797209,1719799839339,-644.09777031,0.00017662,2]
[330797211,1719799839349,-526.28304125,0.00017703,2]
[330797212,1719799839358,-2100.0,0.00017912,2]
[330797215,1719799839369,-343.43544501,0.00018036,2]
[330797216,1719799839379,-506.0,0.00018138,2]
[330797219,1719799839390,-151.04669053,0.00018501,2]
[330797221,1719799839404,-151.03726488,0.00018514,2]
[330797223,1719799839414,-230.11877595,0.00018517,2]
[330797225,1719799839424,-811.723,0.0001855,2]
[330797227,1719799839434,-618.0,0.0001855,2]
[330797229,1719799839444,-443.0,0.0001855,2]
[330797231,1719799839454,-166.0,0.0001855,2]
[330797233,1719799839465,-276.0,0.0001855,2]
[330797235,1719799839475,-154.33739237,0.00018559,2]
[330797237,1719799839484,-154.8377809,0.00018586,2]
[330797239,1719799839495,-230.11877595,0.00018587,2]
[330797241,1719799839505,-154.83472857,0.0001861,2]
[330797243,1719799839516,-230.11877595,0.00018612,2]
[330797245,1719799839526,-186.8978008,0.00018615,2]
[330797247,1719799839536,-202.10084641,0.00018616,2]
[330797249,1719799839546,-230.11877595,0.0001863,2]
[330797251,1719799839556,-155.7422207,0.00018637,2]
[330797253,1719799839567,-1759.20948392,0.00018717,2]
[330797255,1719799839577,-150.45691152,0.00018758,2]
[330797257,1719799839587,-155.0,0.00018759,2]
[330797259,1719799839598,-293.84770828,0.00018777,2]
[330797261,1719799839607,-155.7422207,0.00018778,2]
[330797263,1719799839618,-152.66657846,0.00018781,2]
[330797265,1719799839628,-156.4032567,0.00018834,2]
[330797267,1719799839638,-644.09777031,0.00018847,2]
[330797269,1719799839647,-2049.98,0.00018849,30]
[330797272,1719799839657,-186.8978008,0.00018862,2]
[330797274,1719799839667,-227.0716558,0.00018899,2]
[330797276,1719799839678,-155.0,0.00018899,2]
[330797278,1719799839688,-357.38372072,0.00018901,2]
[330797280,1719799839699,-343.43544501,0.00018908,2]
[330797282,1719799839708,-357.38372072,0.00018917,2]
[330797284,1719799839718,-474.63082794,0.00018919,2]
[330797286,1719799839732,-474.63082794,0.00018919,2]
[330797288,1719799839743,-293.84770828,0.00018922,2]
[330797290,1719799839754,-186.8978008,0.00018926,2]
[330797292,1719799839764,-980.25936475,0.00018931,2]
[330797294,1719799839774,-293.84770828,0.00018932,2]
[330797296,1719799839785,-156.44755964,0.00018965,2]
[330797298,1719799839796,-151.04669053,0.00018971,2]
[330797300,1719799839807,-293.84770828,0.00018994,2]
[330797302,1719799839818,-524.54913334,0.00019069,2]
[330797304,1719799839828,-951.87277391,0.00019083,2]
[330797306,1719799839838,-716.40696563,0.00019098,2]
[330797308,1719799839848,-951.87277391,0.00019099,2]
[330797310,1719799839859,-151.03726488,0.00019114,2]
[330797312,1719799839870,-186.8978008,0.00019117,2]
[330797315,1719799839881,-293.84770828,0.00019126,2]
[330797317,1719799839891,-150.42510388,0.00019161,2]
[330797319,1719799839901,-230.11877595,0.00019164,2]
[330797320,1719799839911,-150.0,0.00019178,2]
[330797322,1719799839923,-250.0,0.00019178,2]
[330797324,1719799839933,-150.45691152,0.0001919,2]
[330797326,1719799839946,-293.84770828,0.00019195,2]
[330797327,1719799839956,-151.04669053,0.00019205,2]
[330797328,1719799839967,-154.75636602,0.00019224,2]
[330797329,1719799839977,-266.29859701,0.00019229,2]
[330797330,1719799839988,-266.29859701,0.00019229,2]
[330797331,1719799839998,-156.4032567,0.00019241,2]
[330797332,1719799840008,-152.75625898,0.00019302,2]
[330797333,1719799840019,-186.8978008,0.00019311,2]
[330797334,1719799840030,-479.21285322,0.00019348,2]
[330797335,1719799840041,-300.0,0.0001935,2]
[330797336,1719799840051,-357.38372072,0.00019355,2]
[330797337,1719799840062,-202.10084641,0.00019361,2]
[330797338,1719799840076,-293.84770828,0.00019372,2]
[330797339,1719799840087,-166.66666668,0.00019399,2]
[330797341,1719799840097,-155.8243226,0.00019402,2]
[330797342,1719799840107,-951.87277391,0.00019417,2]
[330797344,1719799840118,-293.84770828,0.00019439,2]
[330797346,1719799840128,-156.4032567,0.0001945,2]
[330797348,1719799840138,-951.87277391,0.00019478,2]
[330797350,1719799840148,-575.0,0.00019498,2]
[330797382,1719799840458,-150.45691152,0.00019498,2]
[330797384,1719799840469,-357.38372072,0.00019519,2]
[330797386,1719799840478,-186.8978008,0.00019544,2]
[330797388,1719799840488,-447.34,0.00019563,2]
[330797391,1719799840497,-230.11877595,0.00019574,2]
[330797393,1719799840508,-980.25936475,0.00019579,2]
[330797394,1719799840518,-166.66666668,0.00019592,2]
[330797395,1719799840527,-156.4032567,0.00019608,2]
[330797396,1719799840537,-202.10084641,0.00019612,2]
[330797397,1719799840547,-150.45691152,0.00019616,2]
[330797398,1719799840557,-980.25936475,0.00019648,2]
[330797399,1719799840567,-150.0,0.00019683,2]
[330797400,1719799840577,-479.21285322,0.00019704,2]
[330797401,1719799840587,-150.0,0.00019718,2]
[330797402,1719799840597,-980.25936475,0.00019721,2]
[330797403,1719799840606,-166.25068506,0.00019741,2]
[330797404,1719799840616,-202.10084641,0.00019742,2]
[330797405,1719799840626,-357.38372072,0.00019752,2]
[330797406,1719799840636,-151.04669053,0.00019775,2]
[330797407,1719799840646,-343.43544501,0.00019781,2]
[330797408,1719799840666,-166.6666667,0.00019796,2]
[330797409,1719799840676,-357.38372072,0.00019796,2]
[330797410,1719799840686,-150.0,0.000198,2]
[330797411,1719799840697,-151.04669053,0.0001981,2]
[330797412,1719799840707,-150.45691152,0.00019812,2]
[330797413,1719799840717,-202.10084641,0.00019814,2]
[330797414,1719799840728,-759.0,0.00019818,2]
[330797415,1719799840738,-951.87277391,0.00019823,2]
[330797416,1719799840748,-202.10084641,0.00019833,2]
[330797417,1719799840759,-154.8377809,0.0001984,2]
[330797418,1719799840769,-1000.0,0.00019847,2]
[330797419,1719799840779,-479.21285322,0.00019865,2]
[330797420,1719799840789,-293.84770828,0.00019876,2]
[330797421,1719799840799,-155.8243226,0.00019923,2]
[330797422,1719799840810,-152.66657846,0.00019935,2]
[330797423,1719799840820,-951.87277391,0.00019936,2]
[330797424,1719799840830,-151.03726488,0.00019951,2]
[330797425,1719799840840,-150.45691152,0.00019953,2]
[330797426,1719799840851,-186.8978008,0.00019955,2]
[330797427,1719799840861,-155.0,0.00019964,2]
[330797428,1719799840871,-159.39569023,0.0001999,2]
[330797429,1719799840881,-230.11877595,0.00020002,2]
[330797430,1719799840891,-644.09777031,0.00020031,2]
[330797431,1719799840902,-150.0,0.00020048,2]
[330797432,1719799840912,-150.0,0.00020063,2]
[330797433,1719799840923,-951.87277391,0.00020074,2]
[330797434,1719799840933,-150.0,0.00020077,2]
[330797435,1719799840943,-186.8978008,0.0002008,2]
[330797436,1719799840953,-1005.0,0.000201,2]
[330797437,1719799840963,-980.25936475,0.00020105,2]
[330797438,1719799840973,-293.84770828,0.00020157,2]
[330797439,1719799840984,-150.0,0.00020158,2]
[330797440,1719799840994,-980.25936475,0.00020164,2]
[330797441,1719799841004,-479.21285322,0.00020168,2]
[330797442,1719799841014,-150.0,0.00020186,2]
[330797443,1719799841024,-150.0,0.00020187,2]
[330797444,1719799841034,-980.25936475,0.00020191,2]
[330797445,1719799841044,-154.75636602,0.00020202,2]
[330797446,1719799841054,-150.45691152,0.00020221,2]
[330797447,1719799841065,-150.42510388,0.00020223,2]
[330797448,1719799841075,-980.25936475,0.00020225,2]
[330797449,1719799841086,-170.92853389,0.00020228,2]
[330797450,1719799841096,-150.0,0.0002023,2]
[330797451,1719799841106,-166.66666668,0.0002023,2]
[330797452,1719799841116,-152.75625898,0.00020239,2]
[330797453,1719799841125,-951.87277391,0.0002024,2]
[330797454,1719799841135,-150.0,0.00020245,2]
[330797455,1719799841145,-150.0,0.00020253,2]
[330797456,1719799841154,-152.66657846,0.00020271,2]
[330797457,1719799841165,-230.11877595,0.00020301,2]
[330797458,1719799841174,-166.66666668,0.00020316,2]
[330797459,1719799841183,-151.04669053,0.0002032,2]
[330797460,1719799841196,-215.03,0.00020334,2]
[330797461,1719799841206,-152.66657846,0.00020338,2]
[330797462,1719799841215,-951.87277391,0.00020402,2]
[330797463,1719799841225,-152.66657846,0.00020413,2]
[330797464,1719799841236,-150.0,0.00020433,2]
[330797465,1719799841245,-230.11877595,0.00020443,2]
[330797466,1719799841255,-151.04669053,0.0002045,2]
[330797467,1719799841264,-812.16289,0.0002045,2]
[330797468,1719799841274,-152.75625898,0.00020456,2]
[330797469,1719799841284,-1000.0,0.000205,2]
[330797470,1719799841294,-151.52380884,0.00020502,2]
[330797471,1719799841305,-150.0,0.00020515,2]
[330797472,1719799841315,-479.21285322,0.0002055,2]
[330797473,1719799841329,-151.03726488,0.0002055,2]
[330797474,1719799841339,-202.10084641,0.00020556,2]
[330797475,1719799841349,-151.04669053,0.00020563,2]
[330797476,1719799841358,-230.11877595,0.00020565,2]
[330797477,1719799841370,-150.0,0.000206,2]
[330797478,1719799841380,-357.38372072,0.00020609,2]
[330797479,1719799841390,-479.21285322,0.00020618,2]
[330797480,1719799841399,-150.0,0.00020651,2]
[330797481,1719799841409,-343.43544501,0.00020654,2]
[330797482,1719799841420,-166.66666667,0.00020672,2]
[330797483,1719799841429,-500.0,0.00020677,2]
[330797484,1719799841439,-500.0,0.00020677,2]
[330797485,1719799841450,-500.0,0.00020677,2]
[330797486,1719799841461,-500.0,0.00020677,2]
[330797487,1719799841472,-500.0,0.00020677,2]
[330797488,1719799841482,-500.0,0.00020677,2]
[330797489,1719799841492,-500.0,0.00020677,2]
[330797490,1719799841502,-500.0,0.00020677,2]
[330797491,1719799841511,-500.0,0.00020677,2]
[330797492,1719799841521,-500.0,0.00020677,2]
[330797493,1719799841531,-500.0,0.00020677,2]
[330797494,1719799841542,-500.0,0.00020677,2]
[330797495,1719799841552,-500.0,0.00020677,2]
[330797496,1719799841563,-500.0,0.00020677,2]
[330797497,1719799841573,-500.0,0.00020677,2]
[330797498,1719799841585,-500.0,0.00020677,2]
[330797499,1719799841595,-500.0,0.00020677,2]
[330797500,1719799841606,-500.0,0.00020677,2]
[330797501,1719799841616,-500.0,0.00020677,2]
[330797502,1719799841625,-500.0,0.00020677,2]
[330797503,1719799841636,-500.0,0.00020677,2]
[330797504,1719799841645,-500.0,0.00020677,2]
[330797505,1719799841654,-500.0,0.00020677,2]
[330797506,1719799841665,-500.0,0.00020677,2]
[330797507,1719799841675,-500.0,0.00020677,2]
[330797508,1719799841684,-500.0,0.00020677,2]
[330797509,1719799841694,-500.0,0.00020677,2]
[330797510,1719799841703,-500.0,0.00020677,2]
[330797511,1719799841713,-500.0,0.00020677,2]
[330797512,1719799841722,-500.0,0.00020677,2]
[330797513,1719799841732,-500.0,0.00020677,2]
[330797514,1719799841741,-500.0,0.00020677,2]
[330797515,1719799841751,-500.0,0.00020677,2]
[330797516,1719799841760,-500.0,0.00020677,2]
[330797517,1719799841770,-500.0,0.00020677,2]
[330797518,1719799841780,-500.0,0.00020677,2]
[330797519,1719799841789,-500.0,0.00020677,2]
[330797520,1719799841798,-500.0,0.00020677,2]
[330797521,1719799841808,-500.0,0.00020677,2]
[330797522,1719799841817,-500.0,0.00020677,2]
[330797523,1719799841827,-500.0,0.00020677,2]
[330797524,1719799841837,-500.0,0.00020677,2]
[330797525,1719799841846,-500.0,0.00020677,2]
[330797526,1719799841858,-500.0,0.00020677,2]
[330797527,1719799841867,-500.0,0.00020677,2]
[330797528,1719799841878,-500.0,0.00020677,2]
[330797529,1719799841888,-500.0,0.00020677,2]
[330797530,1719799841898,-500.0,0.00020677,2]
[330797531,1719799841908,-500.0,0.00020677,2]
[330797532,1719799841919,-500.0,0.00020677,2]
[330797533,1719799841928,-500.0,0.00020677,2]
[330797534,1719799841937,-500.0,0.00020677,2]
[330797535,1719799841948,-500.0,0.00020677,2]
[330797536,1719799841957,-500.0,0.00020677,2]
[330797537,1719799841966,-500.0,0.00020677,2]
[330797538,1719799841976,-500.0,0.00020677,2]
[330797539,1719799841986,-500.0,0.00020677,2]
[330797540,1719799841999,-500.0,0.00020677,2]
[330797541,1719799842008,-500.0,0.00020677,2]
[330797542,1719799842018,-500.0,0.00020677,2]
[330797543,1719799842027,-500.0,0.00020677,2]
[330797544,1719799842037,-500.0,0.00020677,2]
[330797545,1719799842046,-500.0,0.00020677,2]
[330797546,1719799842057,-500.0,0.00020677,2]
[330797547,1719799842067,-500.0,0.00020677,2]
[330797548,1719799842076,-500.0,0.00020677,2]
[330797549,1719799842085,-500.0,0.00020677,2]
[330797550,1719799842095,-500.0,0.00020677,2]
[330797551,1719799842104,-500.0,0.00020677,2]
[330797552,1719799842114,-500.0,0.00020677,2]
[330797553,1719799842123,-500.0,0.00020677,2]
[330797554,1719799842133,-500.0,0.00020677,2]
[330797555,1719799842143,-500.0,0.00020677,2]
[330797556,1719799842152,-500.0,0.00020677,2]
[330797557,1719799842161,-500.0,0.00020677,2]
[330797558,1719799842172,-500.0,0.00020677,2]
[330797559,1719799842181,-500.0,0.00020677,2]
[330797560,1719799842191,-500.0,0.00020677,2]
[330797561,1719799842204,-500.0,0.00020677,2]
[330797562,1719799842213,-500.0,0.00020677,2]
[330797563,1719799842222,-500.0,0.00020677,2]
[330797564,1719799842232,-500.0,0.00020677,2]
[330797565,1719799842242,-500.0,0.00020677,2]
[330797566,1719799842251,-500.0,0.00020677,2]
[330797567,1719799842261,-500.0,0.00020677,2]
[330797568,1719799842271,-500.0,0.00020677,2]
[330797569,1719799842283,-500.0,0.00020677,2]
[330797570,1719799842293,-500.0,0.00020677,2]
[330797571,1719799842302,-500.0,0.00020677,2]
[330797572,1719799842311,-500.0,0.00020677,2]
[330797573,1719799842321,-800.0,0.00020685,2]
[330797574,1719799842331,-150.0,0.00020692,2]
[330797575,1719799842340,-951.87277391,0.00020694,2]
[330797576,1719799842349,-357.38372072,0.00020696,2]
[330797577,1719799842359,-658.23151722,0.00020702,2]
[330797578,1719799842369,-152.66657846,0.00020707,2]
[330797579,1719799842378,-150.0,0.00020713,2]
[330797580,1719799842388,-980.25936475,0.00020729,2]
[330797581,1719799842398,-150.0,0.00020738,2]
[330797582,1719799842409,-658.2315172,0.00020752,2]
[330797583,1719799842420,-150.0,0.00020756,2]
[330797584,1719799842429,-241.88370623,0.0002078,2]
[330797585,1719799842438,-150.45691152,0.00020785,2]
[330797586,1719799842447,-166.66666667,0.00020791,2]
[330797587,1719799842457,-150.0,0.00020795,2]
[330797588,1719799842466,-2500.0,0.000208,2]
[330797589,1719799842476,-54999.27498669,0.000208,3]
[330797590,1719799842494,-63854.56843911,0.000208,3]
[330797591,1719799842572,-504.08999982,0.00014418,2]
[330797592,1719799842584,-136.59693576,0.00014418,2]
[330797593,1719799842594,-241.53306374,0.00018649,2]
[330797594,1719799842606,-1253.24218215,0.00018649,2]
[330797595,1719799842616,-250.69856022,0.00018999,2]
[330797596,1719799842627,-119260.1527652,0.000208,3]
[330797597,1719799842636,-164.95458626,0.00020802,2]
[330797598,1719799842647,-157.44470744,0.00020802,2]
[330797599,1719799842657,-658.2315172,0.00020802,2]
[330797600,1719799842668,-166.6666667,0.00020804,2]
[330797601,1719799842677,-150.0,0.00020808,2]
[330797602,1719799842688,-151.04669053,0.00020839,2]
[330797603,1719799842698,-177.95309535,0.00020888,4]
[330797604,1719799842708,-212.73194072,0.00020888,4]
[330797605,1719799842718,-155.8243226,0.0002089,2]
[330797606,1719799842727,-93355.53029333,0.0002089,3]
[330797607,1719799842739,-1435.94682322,0.0002089,3]
[330797608,1719799842751,-1510.04597948,0.0002089,3]
[330797609,1719799842772,-1120.80990749,0.0002089,3]
[330797610,1719799842783,-529.37778124,0.0002089,3]
[330797611,1719799842795,-65325.02070641,0.0002089,3]
[330797612,1719799842807,-9814.42610411,0.0002089,3]
[330797613,1719799842818,-486.66778772,0.0002089,3]
[330797623,1719799843674,-318.91504521,0.00014009,2]
[330797624,1719799843684,-622.85018373,0.00018835,2]
[330797625,1719799843694,-4713.36523952,0.0002089,3]
[330797638,1719799848346,-15797.71171212,0.00014009,2]
[330797639,1719799848356,-155.0,0.00019899,2]
[330797640,1719799848365,-423.99,0.00020314,2]
[330797641,1719799848374,-2242.34257312,0.0002089,3]
[330797642,1719799848386,-880.30000001,0.0002089,3]
[330797643,1719799848397,-10733.0528137,0.0002089,3]
[330797644,1719799848408,-15934.55500001,0.0002089,3]
[330797645,1719800092788,2386.14533656,0.00011199,2]
[330797647,1719800127913,1047.28793829,0.00011199,2]
[330797648,1719800160756,291.04674212,0.00011199,2]
[330797649,1719800162228,794.75413447,0.00011199,2]
[330797650,1719800229842,552.51494431,0.00011199,2]
[330797651,1719800258078,527.78130282,0.00011199,2]
[330797652,1719800278179,155.53272354,0.00011199,2]
[330797653,1719800278210,155.84039934,0.00011199,2]
[330797654,1719800291188,155.96974054,0.00011199,2]
[330797655,1719800616199,303.45566707,0.00022,120]
[330797656,1719800676455,155.51577953,0.00011199,2]
[330797658,1719800986248,475.86438479,0.00011199,2]
[330797678,1719801032843,-416.78476708,0.00012273,2]
[330797679,1719801032853,-155.87908113,0.00013472,2]
[330797680,1719801032863,-959.64026147,0.00013574,2]
[330797681,1719801032873,-1257.53300044,0.00013574,2]
[330797682,1719801032882,-1368.29718893,0.00013574,2]
[330797683,1719801032892,-300.0,0.00013898,2]
[330797684,1719801032902,-150.0,0.00013898,2]
[330797685,1719801032912,-270.5524902,0.00013899,2]
[330797686,1719801032923,-5999.8097016,0.00013899,2]
[330797687,1719801032934,-573.2716082,0.00013899,2]
[330797688,1719801032944,-1520.9283918,0.00013899,2]
[330797689,1719801032955,-939.2,0.00013899,2]
[330797690,1719801032968,-2471.61386114,0.00013899,2]
[330797691,1719801032979,-2614.51207228,0.00013899,2]
[330797692,1719801032991,-1956.37593354,0.00013899,2]
[330797693,1719801033003,-339.04706187,0.00013899,2]
[330797694,1719801033014,-6393.22799159,0.00013899,2]
[330797695,1719801033026,-5439.96,0.00013899,2]
[330797696,1719801033038,-53980.04916619,0.00013899,2]
[330797697,1719801033260,-4535.4319598,0.00013899,2]
[330797698,1719801033273,-483.38441344,0.00013899,2]
[330797701,1719801038807,-472.40159129,0.00013899,2]
[330797705,1719801038820,-659.51269631,0.00013899,2]
[330797710,1719801038832,-11374.13826075,0.00013899,2]
[330797714,1719801038842,-428.3,0.00014457,2]
[330797717,1719801038852,-10000.0,0.00014831,2]
[330797720,1719801038862,-5000.0,0.00015,2]
[330797723,1719801038871,-3959.0,0.00015,2]
[330797726,1719801038880,-1721.94,0.0001519,2]
[330797728,1719801038890,-150.99,0.0001519,2]
[330797731,1719801038900,-225.0,0.0001519,2]
[330797733,1719801038909,-420.0,0.00015228,2]
[330797737,1719801038919,-1349.78455581,0.00015399,2]
[330797741,1719801038929,-1170.16,0.00015774,2]
[330797744,1719801038939,-2713.2048,0.00015774,2]
[330797748,1719801038948,-1534.23957913,0.00016016,2]
[330797751,1719801038963,-313.47,0.00016029,3]
[330797754,1719801038974,-2500.0,0.00016039,2]
[330797757,1719801038985,-21217.53801101,0.00016039,2]
[330797760,1719801038995,-9999.99,0.00016116,2]
[330797763,1719801039005,-151.147,0.00016139,2]
[330797766,1719801039015,-1315.83,0.00016139,2]
[330797769,1719801039025,-2429.802,0.00016139,2]
[330797772,1719801039036,-1998.473,0.00016139,2]
[330797775,1719801039047,-3223.486,0.00016139,2]
[330797778,1719801039058,-567.542,0.00016139,2]
[330797780,1719801039068,-945.296,0.00016139,2]
[330797782,1719801039079,-1278.259,0.00016139,2]
[330797783,1719801039090,-5205.057,0.00016139,2]
[330797784,1719801039101,-1666.869,0.00016139,2]
[330797786,1719801039111,-5835.042,0.00016139,2]
[330797788,1719801039122,-1830.0,0.00016139,2]
[330797790,1719801039132,-361.801,0.00016139,2]
[330797792,1719801039143,-292.106,0.00016139,2]
[330797794,1719801039154,-38215.0,0.00016139,2]
[330797796,1719801039164,-250.0,0.00016142,2]
[330797798,1719801039175,-215.03,0.00016308,2]
[330797800,1719801039186,-248.32,0.00016416,2]
[330797802,1719801039196,-248.32,0.00016461,2]
[330797804,1719801039208,-248.32,0.00016506,2]
[330797806,1719801039218,-248.32,0.00016551,2]
[330797807,1719801039229,-248.32,0.00016596,2]
[330797809,1719801039239,-337.0,0.00016608,2]
[330797810,1719801039249,-248.32,0.00016641,2]
[330797812,1719801039260,-587.0,0.00016684,2]
[330797814,1719801039270,-248.32,0.00016686,2]
[330797816,1719801039281,-162.48,0.00016712,2]
[330797818,1719801039295,-428.3,0.00016721,2]
[330797820,1719801039306,-1534.23957908,0.00016725,2]
[330797821,1719801039317,-248.32,0.00016731,2]
[330797822,1719801039328,-21217.53801094,0.00016746,2]
[330797823,1719801039340,-248.32,0.00016776,2]
[330797824,1719801039350,-248.32,0.00016821,2]
[330797825,1719801039359,-248.32,0.00016866,2]
[330797826,1719801039372,-248.32,0.00016911,2]
[330797827,1719801039382,-705.45,0.00016941,2]
[330797828,1719801039392,-248.32,0.00016956,2]
[330797829,1719801039403,-196.89,0.0001696,2]
[330797830,1719801039413,-170.55,0.00016967,2]
[330797831,1719801039423,-248.32,0.00017001,2]
[330797832,1719801039436,-248.32,0.00017046,2]
[330797833,1719801039447,-248.32,0.00017091,2]
[330797834,1719801039456,-248.32,0.00017136,2]
[330797835,1719801039467,-227.0716558,0.00017159,2]
[330797836,1719801039477,-248.32,0.00017181,2]
[330797837,1719801039487,-167.0,0.00017185,2]
[330797838,1719801039496,-248.32,0.00017226,2]
[330797839,1719801039507,-1000.0,0.00017241,2]
[330797840,1719801039516,-6607.12419729,0.00017259,2]
[330797841,1719801039527,-248.32,0.00017271,2]
[330797842,1719801039537,-1534.23957908,0.00017435,2]
[330797843,1719801039547,-21217.53801094,0.00017453,2]
[330797844,1719801039557,-300.0,0.00017684,2]
[330797845,1719801039568,-167.0,0.00017752,2]
[330797846,1719801039578,-239.69,0.00017931,2]
[330797847,1719801039589,-423.60779968,0.00018,2]
[330797848,1719801039599,-423.60779968,0.00018,2]
[330797849,1719801039609,-423.60779968,0.00018,2]
[330797850,1719801039620,-423.60779968,0.00018,2]
[330797851,1719801039631,-423.60779968,0.00018,2]
[330797852,1719801039645,-423.60779968,0.00018,2]
[330797853,1719801039658,-423.60779968,0.00018,2]
[330797854,1719801039668,-423.60779968,0.00018,2]
[330797855,1719801039678,-423.60779968,0.00018,2]
[330797856,1719801039688,-423.60779968,0.00018,2]
[330797857,1719801039699,-423.60779968,0.00018,2]
[330797858,1719801039710,-423.60779968,0.00018,2]
[330797859,1719801039720,-423.60779968,0.00018,2]
[330797860,1719801039732,-423.60779968,0.00018,2]
[330797862,1719801039743,-423.60779968,0.00018,2]
[330797863,1719801039753,-423.60779968,0.00018,2]
[330797865,1719801039764,-423.60779968,0.00018,2]
[330797866,1719801039774,-423.60779968,0.00018,2]
[330797867,1719801039783,-423.60779968,0.00018,2]
[330797868,1719801039794,-423.60779968,0.00018,2]
[330797869,1719801039804,-423.60779968,0.00018,2]
[330797870,1719801039814,-423.60779968,0.00018,2]
[330797871,1719801039825,-423.60779968,0.00018,2]
[330797872,1719801039836,-423.60779968,0.00018,2]
[330797873,1719801039847,-1534.23957908,0.00018144,2]
[330797874,1719801039858,-506.0,0.00018151,2]
[330797875,1719801039868,-21217.53801094,0.00018159,2]
[330797876,1719801039879,-823.0,0.0001828,2]
[330797877,1719801039889,-174.779568,0.0001828,2]
[330797878,1719801039899,-247.13748,0.0001828,2]
[330797879,1719801039910,-167.0,0.00018319,2]
[330797880,1719801039923,-300.232,0.00018447,2]
[330797881,1719801039933,-2100.0,0.00018447,2]
[330797882,1719801039943,-152.28709695,0.00018512,2]
[330797883,1719801039954,-262.0813952,0.00018513,2]
[330797884,1719801039965,-150.45691153,0.00018536,2]
[330797885,1719801039975,-153.4125173,0.00018556,2]
[330797886,1719801039985,-151.03726489,0.00018558,2]
[330797887,1719801039996,-153.4125173,0.00018565,2]
[330797888,1719801040006,-152.66657846,0.00018576,2]
[330797889,1719801040016,-383.37028258,0.00018579,2]
[330797890,1719801040027,-166.66666668,0.0001858,2]
[330797891,1719801040037,-154.94398225,0.00018597,2]
[330797892,1719801040047,-383.37028258,0.0001861,2]
[330797893,1719801040058,-1759.20948392,0.00018649,2]
[330797894,1719801040068,-150.0,0.00018657,2]
[330797895,1719801040079,-153.4125173,0.00018675,2]